[Event "Titled Tuesday Blitz June 13 Late 2023"]
[White "Aung Thant Zin"]
[Black "Jimenez Garcia, Emmanuel"]
[WhiteFideId "13000063"]
[BlackFideId "6504779"]
[WhiteElo "2278"]
[BlackElo "2440"]
[Result "1/2-1/2"]
[Round "7"]
[TimeControl "180+2"]
[Date "2023.06.13"]
[WhiteClock "0:00:05"]
[BlackClock "0:00:55"]
[Board "128"]

1. e4 {[%clk 0:02:45]}  c5 {[%clk 0:02:58]} 2. Nf3 {[%clk 0:02:43]}  Qa5 {[%clk 0:02:58]} 3. Nc3 {[%clk 0:02:35]}  a6 {[%clk 0:02:58]} 4. d4 {[%clk 0:02:35]}  b5 {[%clk 0:02:57]} 5. Bd2 {[%clk 0:02:34]}  b4 {[%clk 0:02:55]} 6. Nd5 {[%clk 0:02:34]}  e6 {[%clk 0:02:55]} 7. Ne3 {[%clk 0:02:31]}  cxd4 {[%clk 0:02:54]} 8. Nxd4 {[%clk 0:02:30]}  Bb7 {[%clk 0:02:54]} 9. f3 {[%clk 0:02:29]}  Nf6 {[%clk 0:02:54]} 10. a3 {[%clk 0:02:26]}  Qb6 {[%clk 0:02:52]} 11. Bxb4 {[%clk 0:02:19]}  Bxb4+ {[%clk 0:02:49]} 12. axb4 {[%clk 0:02:17]}  Qxb4+ {[%clk 0:02:50]} 13. Kf2 {[%clk 0:02:08]}  Nc6 {[%clk 0:02:48]} 14. Nb3 {[%clk 0:01:46]}  O-O {[%clk 0:02:45]} 15. Nc4 {[%clk 0:01:33]}  d5 {[%clk 0:02:39]} 16. exd5 {[%clk 0:01:05]}  Rfd8 {[%clk 0:02:38]} 17. d6 {[%clk 0:01:02]}  Nd5 {[%clk 0:02:32]} 18. Be2 {[%clk 0:00:47]}  a5 {[%clk 0:02:30]} 19. c3 {[%clk 0:00:41]}  Qb5 {[%clk 0:02:27]} 20. Nbxa5 {[%clk 0:00:20]}  Nxa5 {[%clk 0:02:23]} 21. Nxa5 {[%clk 0:00:19]}  Qb6+ {[%clk 0:02:21]} 22. Qd4 {[%clk 0:00:19]}  Qxb2 {[%clk 0:02:15]} 23. Rhb1 {[%clk 0:00:15]}  Qc2 {[%clk 0:02:10]} 24. Nxb7 {[%clk 0:00:11]}  Nxc3 {[%clk 0:02:08]} 25. Qd3 {[%clk 0:00:07]}  Nxb1 {[%clk 0:01:17]} 26. Qxc2 {[%clk 0:00:05]}  Rxa1 {[%clk 0:01:11]} 27. Qc7 {[%clk 0:00:04]}  Rf8 {[%clk 0:01:10]} 28. d7 {[%clk 0:00:04]}  Raa8 {[%clk 0:01:09]} 29. d8=Q {[%clk 0:00:04]}  Raxd8 {[%clk 0:01:08]} 30. Nxd8 {[%clk 0:00:05]}  Nd2 {[%clk 0:01:08]} 31. Qd6 {[%clk 0:00:05]}  Nb1 {[%clk 0:01:07]} 32. Nc6 {[%clk 0:00:05]}  g6 {[%clk 0:01:06]} 33. Ne7+ {[%clk 0:00:04]}  Kg7 {[%clk 0:01:06]} 34. Qe5+ {[%clk 0:00:04]}  f6 {[%clk 0:01:06]} 35. Qxe6 {[%clk 0:00:04]}  Rf7 {[%clk 0:01:07]} 36. Nd5 {[%clk 0:00:04]}  Nd2 {[%clk 0:01:06]} 37. Bc4 {[%clk 0:00:04]}  Nxc4 {[%clk 0:01:06]} 38. Ne7 {[%clk 0:00:05]}  Ne5 {[%clk 0:01:05]} 39. Nd5 {[%clk 0:00:04]}  g5 {[%clk 0:01:03]} 40. g4 {[%clk 0:00:04]}  h6 {[%clk 0:01:02]} 41. h4 {[%clk 0:00:05]}  Rf8 {[%clk 0:00:58]} 42. f4 {[%clk 0:00:04]}  Nd3+ {[%clk 0:00:56]} 43. Ke3 {[%clk 0:00:03]}  Nc5 {[%clk 0:00:57]} 44. Qe7+ {[%clk 0:00:01]}  Rf7 {[%clk 0:00:57]} 45. Qxc5 {[%clk 0:00:02]}  gxh4 {[%clk 0:00:57]} 46. f5 {[%clk 0:00:02]}  h3 {[%clk 0:00:56]} 47. Nf4 {[%clk 0:00:03]}  h2 {[%clk 0:00:54]} 48. Qc2 {[%clk 0:00:03]}  Re7+ {[%clk 0:00:54]} 49. Kf2 {[%clk 0:00:02]}  Re4 {[%clk 0:00:54]} 50. Nh5+ {[%clk 0:00:02]}  Kf7 {[%clk 0:00:53]} 51. Kg2 {[%clk 0:00:03]}  Rxg4+ {[%clk 0:00:53]} 52. Kxh2 {[%clk 0:00:04]}  Rh4+ {[%clk 0:00:54]} 53. Kg3 {[%clk 0:00:02]}  Rxh5 {[%clk 0:00:55]} 54. Qc7+ {[%clk 0:00:01]}  Kf8 {[%clk 0:00:54]} 55. Qd8+ {[%clk 0:00:02]}  Kf7 {[%clk 0:00:54]} 56. Qd7+ {[%clk 0:00:03]}  Kf8 {[%clk 0:00:54]} 57. Qd8+ {[%clk 0:00:04]}  Kf7 {[%clk 0:00:55]} 58. Qd7+ {[%clk 0:00:04]}  Kf8 {[%clk 0:00:55]} 59. Qd8+ {[%clk 0:00:05]} 1/2-1/2


[Site "https://www.chess.com"]

[Event "Titled Tuesday Blitz June 13 Late 2023"]
[White "Abduzhaparov"]
[Black "Hartikainen, Jarmo"]
[BlackFideId "503134"]
[WhiteElo "2398"]
[BlackElo "2129"]
[Result "0-1"]
[Round "7"]
[TimeControl "180+2"]
[Date "2023.06.13"]
[WhiteClock "0:02:47"]
[BlackClock "0:02:40"]
[Board "130"]

1. Nf3 {[%clk 0:03:00]}  Nf6 {[%clk 0:02:58]} 2. c4 {[%clk 0:03:01]}  c5 {[%clk 0:02:58]} 3. Nc3 {[%clk 0:03:00]}  Nc6 {[%clk 0:02:58]} 4. d4 {[%clk 0:03:00]}  d5 {[%clk 0:02:56]} 5. g3 {[%clk 0:02:54]}  g6 {[%clk 0:02:54]} 6. Bg2 {[%clk 0:02:53]}  Bg7 {[%clk 0:02:54]} 7. cxd5 {[%clk 0:02:51]}  Nxd5 {[%clk 0:02:44]} 8. Nxd5 {[%clk 0:02:52]}  Qxd5 {[%clk 0:02:44]} 9. Ne5 {[%clk 0:02:52]}  Qxg2 {[%clk 0:02:42]} 10. Nxc6 {[%clk 0:02:47]}  Qxh1+ {[%clk 0:02:40]} 0-1


[Site "https://www.chess.com"]

[Event "Titled Tuesday Blitz June 13 Late 2023"]
[White "Sanchez, Robert"]
[Black "Quinones Garcia, Santiago"]
[WhiteFideId "2034360"]
[BlackFideId "4408497"]
[WhiteElo "1975"]
[BlackElo "2173"]
[Result "0-1"]
[Round "7"]
[TimeControl "180+2"]
[Date "2023.06.13"]
[WhiteClock "0:01:21"]
[BlackClock "0:01:20"]
[Board "136"]

1. Nf3 {[%clk 0:03:00]}  d5 {[%clk 0:02:57]} 2. e3 {[%clk 0:03:01]}  c6 {[%clk 0:02:57]} 3. c4 {[%clk 0:03:02]}  Nf6 {[%clk 0:02:58]} 4. Nc3 {[%clk 0:03:03]}  g6 {[%clk 0:02:58]} 5. d4 {[%clk 0:03:03]}  Bg7 {[%clk 0:02:58]} 6. Be2 {[%clk 0:03:04]}  O-O {[%clk 0:02:58]} 7. O-O {[%clk 0:03:04]}  b6 {[%clk 0:02:58]} 8. b3 {[%clk 0:03:05]}  Bb7 {[%clk 0:02:59]} 9. Bb2 {[%clk 0:03:05]}  Nbd7 {[%clk 0:03:00]} 10. cxd5 {[%clk 0:03:03]}  cxd5 {[%clk 0:02:58]} 11. Rc1 {[%clk 0:03:03]}  a6 {[%clk 0:02:56]} 12. h3 {[%clk 0:03:02]}  Ne4 {[%clk 0:02:55]} 13. Nxe4 {[%clk 0:03:02]}  dxe4 {[%clk 0:02:54]} 14. Nd2 {[%clk 0:03:02]}  e5 {[%clk 0:02:54]} 15. Nc4 {[%clk 0:02:58]}  exd4 {[%clk 0:02:35]} 16. Bxd4 {[%clk 0:02:58]}  b5 {[%clk 0:01:53]} 17. Nd6 {[%clk 0:02:46]}  Bc8 {[%clk 0:01:49]} 18. Bxg7 {[%clk 0:02:44]}  Kxg7 {[%clk 0:01:50]} 19. Nxe4 {[%clk 0:02:42]}  Qe7 {[%clk 0:01:38]} 20. Qd4+ {[%clk 0:02:40]}  f6 {[%clk 0:01:37]} 21. Rfd1 {[%clk 0:02:39]}  Ne5 {[%clk 0:01:35]} 22. f4 {[%clk 0:02:29]}  Nf7 {[%clk 0:01:32]} 23. Bf3 {[%clk 0:02:21]}  Bb7 {[%clk 0:01:31]} 24. Qc5 {[%clk 0:01:55]}  Rfe8 {[%clk 0:01:23]} 25. Rd4 {[%clk 0:01:21]}  Rac8 {[%clk 0:01:20]} 0-1


[Site "https://www.chess.com"]

[Event "Titled Tuesday Blitz June 13 Late 2023"]
[White "liwadas82"]
[Black "rikchessmx"]
[WhiteElo "2423"]
[BlackElo "2289"]
[Result "1-0"]
[Round "7"]
[TimeControl "180+2"]
[Date "2023.06.13"]
[WhiteClock "0:00:14"]
[BlackClock "0:00:12"]
[Board "137"]

1. e4 {[%clk 0:03:00]}  c5 {[%clk 0:02:46]} 2. Nf3 {[%clk 0:03:00]}  e6 {[%clk 0:02:46]} 3. d4 {[%clk 0:03:01]}  cxd4 {[%clk 0:02:47]} 4. Nxd4 {[%clk 0:03:02]}  a6 {[%clk 0:02:47]} 5. Nc3 {[%clk 0:03:02]}  Qc7 {[%clk 0:02:46]} 6. Bd3 {[%clk 0:03:02]}  Nf6 {[%clk 0:02:45]} 7. O-O {[%clk 0:03:02]}  h5 {[%clk 0:02:45]} 8. Re1 {[%clk 0:03:00]}  Bc5 {[%clk 0:02:43]} 9. Nf3 {[%clk 0:02:18]}  Ng4 {[%clk 0:02:16]} 10. Re2 {[%clk 0:02:17]}  Nc6 {[%clk 0:02:15]} 11. g3 {[%clk 0:01:54]}  h4 {[%clk 0:02:08]} 12. Bf4 {[%clk 0:01:46]}  e5 {[%clk 0:02:02]} 13. Nd5 {[%clk 0:01:42]}  Qb8 {[%clk 0:01:59]} 14. Bg5 {[%clk 0:01:35]}  hxg3 {[%clk 0:01:56]} 15. hxg3 {[%clk 0:01:32]}  f6 {[%clk 0:01:53]} 16. Bd2 {[%clk 0:01:24]}  b5 {[%clk 0:01:50]} 17. b4 {[%clk 0:01:20]}  Bd4 {[%clk 0:01:39]} 18. c3 {[%clk 0:01:18]}  Ba7 {[%clk 0:01:37]} 19. a4 {[%clk 0:01:14]}  bxa4 {[%clk 0:01:35]} 20. Qxa4 {[%clk 0:01:12]}  Ne7 {[%clk 0:01:32]} 21. Nxe7 {[%clk 0:01:02]}  Kxe7 {[%clk 0:01:31]} 22. Kg2 {[%clk 0:01:00]}  Bb7 {[%clk 0:01:12]} 23. Nh4 {[%clk 0:00:50]}  Rxh4 {[%clk 0:01:00]} 24. gxh4 {[%clk 0:00:49]}  Qh8 {[%clk 0:01:00]} 25. Rh1 {[%clk 0:00:44]}  Qh5 {[%clk 0:00:59]} 26. Rh3 {[%clk 0:00:24]}  Bc6 {[%clk 0:00:53]} 27. Qb3 {[%clk 0:00:20]}  Nh6 {[%clk 0:00:49]} 28. f3 {[%clk 0:00:19]}  d6 {[%clk 0:00:34]} 29. Be3 {[%clk 0:00:18]}  Bxe3 {[%clk 0:00:31]} 30. Rxe3 {[%clk 0:00:19]}  f5 {[%clk 0:00:30]} 31. exf5 {[%clk 0:00:15]}  Nxf5 {[%clk 0:00:30]} 32. Bxf5 {[%clk 0:00:14]}  Qxf5 {[%clk 0:00:29]} 33. Rg3 {[%clk 0:00:14]}  Qf6 {[%clk 0:00:20]} 34. Qc4 {[%clk 0:00:14]}  Rc8 {[%clk 0:00:18]} 35. Qg4 {[%clk 0:00:15]}  Kf8 {[%clk 0:00:12]} 36. Qxc8+ {[%clk 0:00:14]} 1-0


[Site "https://www.chess.com"]

[Event "Titled Tuesday Blitz June 13 Late 2023"]
[White "Ochkoos, Jura"]
[Black "SicilianPanzer"]
[WhiteFideId "2601214"]
[WhiteElo "2139"]
[BlackElo "2242"]
[Result "0-1"]
[Round "7"]
[TimeControl "180+2"]
[Date "2023.06.13"]
[WhiteClock "0:00:31"]
[BlackClock "0:00:02"]
[Board "139"]

1. e4 {[%clk 0:03:00]}  e6 {[%clk 0:02:59]} 2. d4 {[%clk 0:03:00]}  d5 {[%clk 0:02:59]} 3. Nc3 {[%clk 0:03:01]}  Nf6 {[%clk 0:02:58]} 4. e5 {[%clk 0:03:00]}  Nfd7 {[%clk 0:02:58]} 5. Nce2 {[%clk 0:03:01]}  c5 {[%clk 0:02:58]} 6. c3 {[%clk 0:03:02]}  Nc6 {[%clk 0:02:58]} 7. f4 {[%clk 0:03:02]}  Qb6 {[%clk 0:02:41]} 8. Nf3 {[%clk 0:03:01]}  cxd4 {[%clk 0:02:40]} 9. cxd4 {[%clk 0:03:00]}  Bb4+ {[%clk 0:02:39]} 10. Bd2 {[%clk 0:03:00]}  O-O {[%clk 0:02:27]} 11. Bxb4 {[%clk 0:03:00]}  Qxb4+ {[%clk 0:02:27]} 12. Qd2 {[%clk 0:03:00]}  Qb6 {[%clk 0:02:23]} 13. Nc3 {[%clk 0:02:54]}  f6 {[%clk 0:02:21]} 14. O-O-O {[%clk 0:02:41]}  Qa5 {[%clk 0:01:49]} 15. Kb1 {[%clk 0:02:39]}  Rb8 {[%clk 0:01:46]} 16. f5 {[%clk 0:02:14]}  exf5 {[%clk 0:01:37]} 17. e6 {[%clk 0:02:12]}  Nb6 {[%clk 0:01:35]} 18. Re1 {[%clk 0:02:08]}  Re8 {[%clk 0:01:34]} 19. e7 {[%clk 0:01:59]}  Rxe7 {[%clk 0:01:23]} 20. Rxe7 {[%clk 0:01:55]}  Nxe7 {[%clk 0:01:22]} 21. Bd3 {[%clk 0:01:47]}  Nc4 {[%clk 0:01:16]} 22. Bxc4 {[%clk 0:01:43]}  dxc4 {[%clk 0:01:15]} 23. d5 {[%clk 0:01:36]}  Bd7 {[%clk 0:01:05]} 24. Re1 {[%clk 0:01:33]}  Qc5 {[%clk 0:01:00]} 25. Qf4 {[%clk 0:01:12]}  Re8 {[%clk 0:00:58]} 26. Nd4 {[%clk 0:01:02]}  Nxd5 {[%clk 0:00:42]} 27. Rxe8+ {[%clk 0:01:00]}  Bxe8 {[%clk 0:00:42]} 28. Qb8 {[%clk 0:00:56]}  Nxc3+ {[%clk 0:00:37]} 29. bxc3 {[%clk 0:00:56]}  Qe7 {[%clk 0:00:29]} 30. Nxf5 {[%clk 0:00:49]}  Qe1+ {[%clk 0:00:17]} 31. Kb2 {[%clk 0:00:49]}  Qd2+ {[%clk 0:00:15]} 32. Kb1 {[%clk 0:00:47]}  Qd1+ {[%clk 0:00:06]} 33. Kb2 {[%clk 0:00:47]}  Qd2+ {[%clk 0:00:06]} 34. Kb1 {[%clk 0:00:47]}  Qe1+ {[%clk 0:00:05]} 35. Kc2 {[%clk 0:00:47]}  Qf2+ {[%clk 0:00:03]} 36. Kd1 {[%clk 0:00:44]}  Qf1+ {[%clk 0:00:02]} 37. Kd2 {[%clk 0:00:44]}  Qd3+ {[%clk 0:00:02]} 38. Ke1 {[%clk 0:00:42]}  Qe4+ {[%clk 0:00:02]} 39. Kf1 {[%clk 0:00:40]}  Qxf5+ {[%clk 0:00:02]} 40. Kg1 {[%clk 0:00:40]}  Qc5+ {[%clk 0:00:01]} 41. Kf1 {[%clk 0:00:40]}  Qe7 {[%clk 0:00:01]} 42. Qxa7 {[%clk 0:00:40]}  Bf7 {[%clk 0:00:02]} 43. Kf2 {[%clk 0:00:39]}  h6 {[%clk 0:00:01]} 44. a4 {[%clk 0:00:36]}  Kh7 {[%clk 0:00:02]} 45. a5 {[%clk 0:00:35]}  Bd5 {[%clk 0:00:02]} 46. a6 {[%clk 0:00:34]}  Qe4 {[%clk 0:00:03]} 47. axb7 {[%clk 0:00:33]}  Qxg2+ {[%clk 0:00:02]} 48. Ke3 {[%clk 0:00:31]}  Bxb7 {[%clk 0:00:02]} 0-1


[Site "https://www.chess.com"]

[Event "Titled Tuesday Blitz June 13 Late 2023"]
[White "Celestino, Rafael Teixeira"]
[Black "Romanchuk, Viktor"]
[WhiteFideId "2108925"]
[BlackFideId "14109271"]
[WhiteElo "2258"]
[BlackElo "2242"]
[Result "0-1"]
[Round "7"]
[TimeControl "180+2"]
[Date "2023.06.13"]
[WhiteClock "0:00:00"]
[BlackClock "0:01:24"]
[Board "143"]

1. e4 {[%clk 0:03:00]}  c6 {[%clk 0:02:59]} 2. Nf3 {[%clk 0:03:00]}  d5 {[%clk 0:02:59]} 3. Nc3 {[%clk 0:03:01]}  dxe4 {[%clk 0:02:59]} 4. Nxe4 {[%clk 0:03:02]}  Nd7 {[%clk 0:02:59]} 5. Neg5 {[%clk 0:03:00]}  Ngf6 {[%clk 0:02:53]} 6. Bc4 {[%clk 0:03:00]}  e6 {[%clk 0:02:53]} 7. Qe2 {[%clk 0:03:00]}  Nd5 {[%clk 0:02:53]} 8. d4 {[%clk 0:02:55]}  Be7 {[%clk 0:02:51]} 9. c3 {[%clk 0:02:47]}  h6 {[%clk 0:02:49]} 10. Ne4 {[%clk 0:02:39]}  b6 {[%clk 0:02:43]} 11. Ng3 {[%clk 0:02:36]}  Bb7 {[%clk 0:02:38]} 12. Nh5 {[%clk 0:02:35]}  O-O {[%clk 0:02:37]} 13. Bd3 {[%clk 0:02:35]}  N5f6 {[%clk 0:02:26]} 14. Ne5 {[%clk 0:02:32]}  c5 {[%clk 0:02:18]} 15. Be3 {[%clk 0:01:31]}  Nxe5 {[%clk 0:02:09]} 16. dxe5 {[%clk 0:01:31]}  Nxh5 {[%clk 0:02:07]} 17. Qxh5 {[%clk 0:01:31]}  Qxd3 {[%clk 0:02:05]} 18. Rd1 {[%clk 0:01:30]}  Qe4 {[%clk 0:01:56]} 19. Rg1 {[%clk 0:01:22]}  Rad8 {[%clk 0:01:53]} 20. h4 {[%clk 0:00:04]}  Rxd1+ {[%clk 0:01:43]} 21. Qxd1 {[%clk 0:00:05]}  Rd8 {[%clk 0:01:42]} 22. Qc1 {[%clk 0:00:05]}  Bxh4 {[%clk 0:01:34]} 23. g4 {[%clk 0:00:05]}  Rd3 {[%clk 0:01:30]} 24. Kf1 {[%clk 0:00:00]}  Qf3 {[%clk 0:01:24]} 0-1


[Site "https://www.chess.com"]

[Event "Titled Tuesday Blitz June 13 Late 2023"]
[White "Magallanes, Rey Jomar"]
[Black "Benedetti, Julio"]
[WhiteFideId "5205948"]
[BlackFideId "172545"]
[WhiteElo "2255"]
[BlackElo "2263"]
[Result "0-1"]
[Round "7"]
[TimeControl "180+2"]
[Date "2023.06.13"]
[WhiteClock "0:00:41"]
[BlackClock "0:01:03"]
[Board "144"]

1. e4 {[%clk 0:03:00]}  c5 {[%clk 0:02:59]} 2. Nf3 {[%clk 0:03:00]}  Nc6 {[%clk 0:03:00]} 3. d4 {[%clk 0:03:00]}  cxd4 {[%clk 0:03:01]} 4. Nxd4 {[%clk 0:03:01]}  Nf6 {[%clk 0:03:01]} 5. Nc3 {[%clk 0:03:01]}  e5 {[%clk 0:03:01]} 6. Ndb5 {[%clk 0:03:01]}  d6 {[%clk 0:03:02]} 7. Bg5 {[%clk 0:03:00]}  a6 {[%clk 0:03:03]} 8. Na3 {[%clk 0:03:00]}  b5 {[%clk 0:03:03]} 9. Nd5 {[%clk 0:03:00]}  Be7 {[%clk 0:03:04]} 10. Bxf6 {[%clk 0:03:00]}  Bxf6 {[%clk 0:03:04]} 11. c3 {[%clk 0:03:00]}  O-O {[%clk 0:03:04]} 12. Nc2 {[%clk 0:03:00]}  Bg5 {[%clk 0:03:05]} 13. a4 {[%clk 0:02:57]}  bxa4 {[%clk 0:03:06]} 14. Ncb4 {[%clk 0:02:57]}  Nxb4 {[%clk 0:03:03]} 15. cxb4 {[%clk 0:02:57]}  Bd7 {[%clk 0:02:54]} 16. Bd3 {[%clk 0:02:55]}  a5 {[%clk 0:02:44]} 17. b5 {[%clk 0:02:52]}  Qb8 {[%clk 0:02:44]} 18. Qe2 {[%clk 0:02:46]}  Rc8 {[%clk 0:02:36]} 19. h4 {[%clk 0:02:41]}  Bd8 {[%clk 0:02:35]} 20. O-O {[%clk 0:02:38]}  Rc5 {[%clk 0:02:35]} 21. Rxa4 {[%clk 0:02:36]}  Bxb5 {[%clk 0:02:35]} 22. Bxb5 {[%clk 0:02:35]}  Rxb5 {[%clk 0:02:36]} 23. Rc4 {[%clk 0:02:32]}  Rxb2 {[%clk 0:02:35]} 24. Qg4 {[%clk 0:02:26]}  a4 {[%clk 0:02:30]} 25. Rfc1 {[%clk 0:02:26]}  Rb1 {[%clk 0:02:27]} 26. Ne3 {[%clk 0:02:03]}  a3 {[%clk 0:01:55]} 27. Nf5 {[%clk 0:02:00]}  g6 {[%clk 0:01:54]} 28. Nh6+ {[%clk 0:01:28]}  Kg7 {[%clk 0:01:54]} 29. Nf5+ {[%clk 0:01:23]}  Kf8 {[%clk 0:01:53]} 30. Ne3 {[%clk 0:01:15]}  a2 {[%clk 0:01:46]} 31. Kh2 {[%clk 0:01:05]}  Rxc1 {[%clk 0:01:45]} 32. Rxc1 {[%clk 0:01:05]}  a1=Q {[%clk 0:01:42]} 33. Rxa1 {[%clk 0:01:05]}  Rxa1 {[%clk 0:01:42]} 34. Nd5 {[%clk 0:01:04]}  Qb1 {[%clk 0:01:32]} 35. Qd7 {[%clk 0:01:03]}  Qh1+ {[%clk 0:01:31]} 36. Kg3 {[%clk 0:01:02]}  Qxh4+ {[%clk 0:01:32]} 37. Kf3 {[%clk 0:01:03]}  Ra3+ {[%clk 0:01:27]} 38. Ne3 {[%clk 0:01:01]}  Qf4+ {[%clk 0:01:26]} 39. Ke2 {[%clk 0:01:00]}  Ra2+ {[%clk 0:01:26]} 40. Kd3 {[%clk 0:01:00]}  Ra3+ {[%clk 0:01:06]} 41. Ke2 {[%clk 0:00:50]}  Be7 {[%clk 0:01:04]} 42. Qc8+ {[%clk 0:00:46]}  Kg7 {[%clk 0:01:04]} 43. Qc3 {[%clk 0:00:41]}  Rxc3 {[%clk 0:01:03]} 0-1


[Site "https://www.chess.com"]

[Event "Titled Tuesday Blitz June 13 Late 2023"]
[White "Chemin, Justo Reinaldo"]
[Black "Garrido, Denis"]
[WhiteFideId "2101580"]
[BlackFideId "601217"]
[WhiteElo "1940"]
[BlackElo "2335"]
[Result "1-0"]
[Round "7"]
[TimeControl "180+2"]
[Date "2023.06.13"]
[WhiteClock "0:00:15"]
[BlackClock "0:01:38"]
[Board "146"]

1. d4 {[%clk 0:03:00]}  Nf6 {[%clk 0:02:59]} 2. c4 {[%clk 0:03:00]}  c5 {[%clk 0:02:59]} 3. e3 {[%clk 0:02:58]}  g6 {[%clk 0:02:56]} 4. Nf3 {[%clk 0:02:58]}  Bg7 {[%clk 0:02:56]} 5. Nc3 {[%clk 0:02:58]}  O-O {[%clk 0:02:57]} 6. Be2 {[%clk 0:02:56]}  cxd4 {[%clk 0:02:57]} 7. exd4 {[%clk 0:02:53]}  d5 {[%clk 0:02:57]} 8. O-O {[%clk 0:02:52]}  Nc6 {[%clk 0:02:56]} 9. Ne5 {[%clk 0:02:49]}  Bf5 {[%clk 0:02:51]} 10. Nxc6 {[%clk 0:02:42]}  bxc6 {[%clk 0:02:51]} 11. c5 {[%clk 0:02:40]}  Ne4 {[%clk 0:02:49]} 12. f3 {[%clk 0:02:31]}  Nxc3 {[%clk 0:02:46]} 13. bxc3 {[%clk 0:02:32]}  e5 {[%clk 0:02:47]} 14. Be3 {[%clk 0:02:24]}  Re8 {[%clk 0:02:45]} 15. Bf2 {[%clk 0:02:24]}  e4 {[%clk 0:02:43]} 16. fxe4 {[%clk 0:02:13]}  Bxe4 {[%clk 0:02:44]} 17. Bf3 {[%clk 0:02:11]}  Rb8 {[%clk 0:02:37]} 18. Bxe4 {[%clk 0:02:05]}  Rxe4 {[%clk 0:02:36]} 19. Qa4 {[%clk 0:02:04]}  Qd7 {[%clk 0:02:32]} 20. Rab1 {[%clk 0:02:01]}  Rbe8 {[%clk 0:02:32]} 21. Qa6 {[%clk 0:01:51]}  Re2 {[%clk 0:02:22]} 22. Rb7 {[%clk 0:01:33]}  Qg4 {[%clk 0:02:21]} 23. Bg3 {[%clk 0:01:18]}  h5 {[%clk 0:02:07]} 24. Rbxf7 {[%clk 0:00:44]}  Bh6 {[%clk 0:02:06]} 25. Qxc6 {[%clk 0:00:26]}  Be3+ {[%clk 0:01:47]} 26. Kh1 {[%clk 0:00:25]}  h4 {[%clk 0:01:45]} 27. Qxd5 {[%clk 0:00:24]}  hxg3 {[%clk 0:01:38]} 28. Rf8+ {[%clk 0:00:22]}  Kh7 {[%clk 0:01:39]} 29. Qf7+ {[%clk 0:00:22]}  Kh6 {[%clk 0:01:39]} 30. Rxe8 {[%clk 0:00:15]}  gxh2 {[%clk 0:01:38]} 31. Rh8+ {[%clk 0:00:15]}  Kg5 {[%clk 0:01:38]} 32. Qe7# {[%clk 0:00:15]} 1-0


[Site "https://www.chess.com"]

[Event "Titled Tuesday Blitz June 13 Late 2023"]
[White "Cluke86"]
[Black "Gerbelli Neto, Eduardo"]
[BlackFideId "2103281"]
[WhiteElo "2212"]
[BlackElo "2178"]
[Result "1-0"]
[Round "7"]
[TimeControl "180+2"]
[Date "2023.06.13"]
[WhiteClock "0:02:20"]
[BlackClock "0:01:48"]
[Board "147"]

1. e4 {[%clk 0:03:00]}  e5 {[%clk 0:02:54]} 2. Nf3 {[%clk 0:02:57]}  Nc6 {[%clk 0:02:54]} 3. Bc4 {[%clk 0:02:54]}  Nf6 {[%clk 0:02:53]} 4. O-O {[%clk 0:02:54]}  Nxe4 {[%clk 0:02:53]} 5. Nc3 {[%clk 0:02:53]}  Nxc3 {[%clk 0:02:52]} 6. dxc3 {[%clk 0:02:54]}  Be7 {[%clk 0:02:46]} 7. Qd5 {[%clk 0:02:53]}  O-O {[%clk 0:02:46]} 8. Nxe5 {[%clk 0:02:52]}  Nxe5 {[%clk 0:02:45]} 9. Qxe5 {[%clk 0:02:53]}  Bf6 {[%clk 0:02:39]} 10. Qd5 {[%clk 0:02:51]}  c6 {[%clk 0:02:37]} 11. Qd6 {[%clk 0:02:52]}  Be7 {[%clk 0:02:36]} 12. Qg3 {[%clk 0:02:52]}  d5 {[%clk 0:02:36]} 13. Bd3 {[%clk 0:02:43]}  Bd6 {[%clk 0:02:30]} 14. f4 {[%clk 0:02:37]}  Qf6 {[%clk 0:02:22]} 15. Be3 {[%clk 0:02:32]}  Bf5 {[%clk 0:02:20]} 16. Bd4 {[%clk 0:02:30]}  Qg6 {[%clk 0:02:15]} 17. Bxf5 {[%clk 0:02:30]}  Qxg3 {[%clk 0:02:10]} 18. hxg3 {[%clk 0:02:31]}  c5 {[%clk 0:02:02]} 19. Bf2 {[%clk 0:02:25]}  g6 {[%clk 0:02:02]} 20. Bd3 {[%clk 0:02:21]}  c4 {[%clk 0:02:02]} 21. Be2 {[%clk 0:02:21]}  Rfd8 {[%clk 0:01:48]} 22. Bf3 {[%clk 0:02:20]} 1-0


[Site "https://www.chess.com"]

[Event "Titled Tuesday Blitz June 13 Late 2023"]
[White "Kaufman, Raymond"]
[Black "Sariego Figueredo, Wilfredo"]
[WhiteFideId "2015056"]
[BlackFideId "3500080"]
[WhiteElo "2264"]
[BlackElo "2309"]
[Result "1-0"]
[Round "7"]
[TimeControl "180+2"]
[Date "2023.06.13"]
[WhiteClock "0:00:49"]
[BlackClock "0:00:41"]
[Board "149"]

1. d4 {[%clk 0:02:58]}  d5 {[%clk 0:02:56]} 2. Bf4 {[%clk 0:02:58]}  Nf6 {[%clk 0:02:56]} 3. e3 {[%clk 0:02:57]}  e6 {[%clk 0:02:55]} 4. Nf3 {[%clk 0:02:55]}  Bd6 {[%clk 0:02:55]} 5. Ne5 {[%clk 0:02:55]}  O-O {[%clk 0:02:55]} 6. Nd2 {[%clk 0:02:54]}  c5 {[%clk 0:02:56]} 7. Bd3 {[%clk 0:02:50]}  Qc7 {[%clk 0:02:55]} 8. c3 {[%clk 0:02:49]}  Nc6 {[%clk 0:02:56]} 9. Ndf3 {[%clk 0:02:44]}  Ne4 {[%clk 0:02:44]} 10. O-O {[%clk 0:02:29]}  f5 {[%clk 0:02:42]} 11. Nxc6 {[%clk 0:02:16]}  Qxc6 {[%clk 0:02:33]} 12. Bxd6 {[%clk 0:02:06]}  Qxd6 {[%clk 0:02:33]} 13. Bxe4 {[%clk 0:02:03]}  fxe4 {[%clk 0:02:27]} 14. Ne5 {[%clk 0:02:02]}  cxd4 {[%clk 0:02:26]} 15. cxd4 {[%clk 0:02:00]}  Bd7 {[%clk 0:02:26]} 16. Qb3 {[%clk 0:01:59]}  Bc6 {[%clk 0:02:22]} 17. Rac1 {[%clk 0:01:57]}  Rf5 {[%clk 0:02:15]} 18. Qa3 {[%clk 0:01:43]}  Qc7 {[%clk 0:01:58]} 19. Nxc6 {[%clk 0:01:32]}  bxc6 {[%clk 0:01:59]} 20. Qc5 {[%clk 0:01:31]}  Rh5 {[%clk 0:01:53]} 21. h3 {[%clk 0:01:22]}  Qf7 {[%clk 0:01:46]} 22. Qxc6 {[%clk 0:01:17]}  Rf8 {[%clk 0:01:42]} 23. Qd6 {[%clk 0:01:15]}  Qg6 {[%clk 0:01:35]} 24. Rc6 {[%clk 0:01:08]}  h6 {[%clk 0:01:15]} 25. Qxe6+ {[%clk 0:01:03]}  Qxe6 {[%clk 0:01:08]} 26. Rxe6 {[%clk 0:01:03]}  Rhf5 {[%clk 0:01:06]} 27. Re7 {[%clk 0:00:58]}  R5f7 {[%clk 0:01:06]} 28. Rxf7 {[%clk 0:00:57]}  Kxf7 {[%clk 0:01:04]} 29. Rc1 {[%clk 0:00:58]}  Rb8 {[%clk 0:01:01]} 30. b3 {[%clk 0:00:52]}  Rb7 {[%clk 0:00:59]} 31. Rc5 {[%clk 0:00:50]}  Rd7 {[%clk 0:00:59]} 32. f3 {[%clk 0:00:50]}  exf3 {[%clk 0:00:53]} 33. gxf3 {[%clk 0:00:51]}  Ke6 {[%clk 0:00:47]} 34. Kf2 {[%clk 0:00:51]}  Kf5 {[%clk 0:00:43]} 35. e4+ {[%clk 0:00:49]}  Ke6 {[%clk 0:00:41]} 36. Rxd5 {[%clk 0:00:48]}  Rxd5 {[%clk 0:00:41]} 37. exd5+ {[%clk 0:00:48]}  Kxd5 {[%clk 0:00:42]} 38. Ke3 {[%clk 0:00:48]}  a5 {[%clk 0:00:42]} 39. a3 {[%clk 0:00:48]}  g6 {[%clk 0:00:41]} 40. b4 {[%clk 0:00:48]}  axb4 {[%clk 0:00:42]} 41. axb4 {[%clk 0:00:48]}  Kc4 {[%clk 0:00:43]} 42. Ke4 {[%clk 0:00:48]}  Kxb4 {[%clk 0:00:44]} 43. d5 {[%clk 0:00:49]}  Kc4 {[%clk 0:00:44]} 44. d6 {[%clk 0:00:49]}  Kc5 {[%clk 0:00:41]} 45. d7 {[%clk 0:00:49]} 1-0


[Site "https://www.chess.com"]